[Event "FIDE WCCC G12 2018"]
[Site "Santiago de Compostela"]
[Date "2018.11.12"]
[Round "8"]
[White "Kairbekova, Amina"]
[Black "Omonova, Umida"]
[Result "0-1"]
[ECO "B36"]
[WhiteElo "1939"]
[BlackElo "1854"]
[Annotator "NA RC"]
[PlyCount "102"]
[EventDate "2018.11.04"]
[EventType "swiss"]
[EventCountry "ESP"]
[SourceTitle "playchess.com"]
[Source "ChessBase"]
[SourceQuality "1"]
[TimeControl "40/5400+30:1800+30"]

{[%evp 8,99,56,41,37,44,38,42,50,43,40,41,45,28,47,46,83,0,-4,-10,-6,-16,-11,-24,0,14,19,18,15,-10,63,0,73,-29,0,-6,0,-119,-97,-265,-297,-292,-311,-300,-292,-320,-308,-280,-306,-330,-196,-311,-323,-341,-358,-410,-450,32767,32767,-485,-585,-535,-575,-547,-549,-540,-595,-729,-569,-629,32767,-575,-614,-595,-590,32767,-1012,-983,-1088,-962,32767,-997,32767,32767,-29978,-29971,-29981,32767,32767,-29983,-29981,-12843,-11997,-5627]} 1. e4 {[%emt 0:00:00]} c5 {[%emt 0:00:04]} 2. Nf3 {[%emt 0:00:03]} Nc6 {[%emt 0:00:59]} 3. d4 {[%emt 0:00:09]} cxd4 {[%emt 0:00:40]} 4. Nxd4 {[%emt 0:00:07]} g6 {[%emt 0:01:46]} 5. c4 {[%emt 0:00:07]} Nf6 {[%emt 0:00:27]} 6. Nc3 {[%emt 0:02:17]} d6 {[%emt 0:00:13]} 7. Be2 {[%emt 0:01:31]} Nxd4 {[%emt 0:00:32]} 8. Qxd4 {[%emt 0:00:15]} Bg7 {[%emt 0:00:11]} 9. Be3 {[%emt 0:00:32]} O-O {[%emt 0:00:58]} 10. Qd2 {[%emt 0:05:00] LiveBook: 1418 Games} a5 {[%emt 0:01:59] B36: Sizilianisch (Maroczy-Aufbau)} 11. Rd1 {[%emt 0:00:44]} (11. O-O a4 12. Bd4 Be6 13. f4 Qa5 14. Rad1 Rac8 15. b3 axb3 16. axb3 b5 17. Bxf6 Bxf6 18. Nxb5 Qxd2 19. Rxd2 Ra8 20. Nc7 Ra3 21. Nxe6 fxe6 {1-0 (58) Yu,Y (2759)-Bu,X (2718) Hangzhou 2018}) 11... Ng4 $146 {[%emt 0:05:16]} ({Vorgänger:} 11... a4 12. O-O Qa5 13. Bd4 Bd7 14. Qe3 Bc6 15. Nd5 Bxd5 16. exd5 Rfe8 17. Qa3 Ne4 18. Be3 {½-½ (72) Yilmaz,M (2633)-Vocaturo,D (2615) Batumi 2018}) 12. c5 {[%emt 0:04:14]} (12. Bd4 $16) 12... Nxe3 {[%emt 0:01:26]} 13. Qxe3 {[%emt 0:01:37]} Be6 {[%emt 0:00:51]} 14. cxd6 {[%emt 0:00:10]} exd6 {[%emt 0:00:05]} 15. O-O {[%emt 0:01:26]} Qe7 {[%emt 0:05:33]} 16. Rd2 {[%emt 0:00:46]} Rfd8 {[%emt 0:07:33]} 17. Rfd1 {[%emt 0:00:08]} a4 {[%emt 0:01:34]} 18. Bb5 {[%emt 0:12:37]} a3 {[%emt 0:03:21]} (18... Rdc8 $11) 19. b3 {[%emt 0:00:16]} Qc7 {[%emt 0:03:29]} (19... Rac8 $11 20. Na4 h6) 20. Ne2 {[%emt 0:02:26]} ({Günstiger ist} 20. Nd5 $14 Bxd5 21. Rxd5) 20... Bb2 {[%emt 0:03:15]} (20... Qa5 $5 {[%cal Ra5b5]} 21. Bc4 Bxc4 22. bxc4 Rac8 $11) 21. Bd3 {[%emt 0:20:26]} Qc5 {[%emt 0:08:00]} 22. Qxc5 {[%emt 0:02:31]} (22. Qf3 $11 {hält das Gleichgewicht.}) 22... dxc5 {[%emt 0:01:27]} 23. Bc2 $2 {[%emt 0:03:39]} (23. Bc4 $17 Rxd2 24. Rxd2) 23... Rxd2 {[%emt 0:02:27]} 24. Rxd2 {[%emt 0:00:04]} c4 {[%emt 0:00:49]} 25. bxc4 {[%emt 0:01:32]} Bxc4 {[%emt 0:00:05]} 26. Bb1 {[%emt 0:00:44]} Rc8 {[%emt 0:01:11]} 27. Kf1 {[%emt 0:03:47]} b5 {[%emt 0:01:50]} 28. Ke1 {[%emt 0:03:52]} Rb8 {[%emt 0:01:29]} 29. Kd1 {[%emt 0:02:49]} (29. Rc2 $142) 29... b4 {[%emt 0:00:18]} 30. Nc1 {[%emt 0:00:23]} Rc8 {[%emt 0:01:59]} 31. Rc2 {[%emt 0:14:11]} Bc3 {[%emt 0:00:38]} 32. Rxc3 {[%emt 0:07:47]} bxc3 {[%emt 0:00:14]} 33. Bd3 {[%emt 0:03:27]} Be6 {[%emt 0:03:50]} 34. Kc2 {[%emt 0:03:40]} Rb8 {[%emt 0:00:19]} 35. Kxc3 {[%emt 0:01:37]} Rb2 {[%emt 0:00:25]} 36. Bc2 {[%emt 0:01:36]} Bxa2 {[%emt 0:01:05]} 37. Nd3 {[%emt 0:00:48]} Rb8 {[%emt 0:00:12]} 38. Nb4 {[%emt 0:01:10]} Be6 {[%emt 0:00:12]} 39. Bb1 {[%emt 0:00:31]} Rc8+ {[%emt 0:00:24]} 40. Kd2 {[%emt 0:00:00]} Rc4 {[%emt 0:00:00]} 41. Na2 {[%emt 0:05:43]} Rd4+ {[%emt 0:00:56]} 42. Kc1 {[%emt 0:07:24]} Bxa2 {[%emt 0:00:22]} 43. Bxa2 {[%emt 0:03:41]} Rxe4 {[%emt 0:00:08]} 44. Kc2 {[%emt 0:01:50]} Re2+ {[%emt 0:00:19]} 45. Kb3 {[%emt 0:02:42]} Rxf2 {[%emt 0:00:10]} 46. Kxa3 {[%emt 0:00:08]} Rxg2 {[%emt 0:00:04]} 47. Bd5 {[%emt 0:00:07]} Rxh2 {[%emt 0:00:05]} 48. Kb3 {[%emt 0:00:03]} Rd2 {[%emt 0:00:10]} 49. Bc6 {[%emt 0:00:11]} h5 $19 {[%emt 0:00:10]} 50. Kc3 {[%emt 0:00:04]} Rd8 {[%emt 0:00:06]} 51. Bf3 {[%emt 0:00:33]} f5 {[%emt 0:00:11] Kd4} 0-1

[Event "FIDE WCCC G12 2018"]
[Site "Santiago de Compostela"]
[Date "2018.11.12"]
[Round "8"]
[White "Vicze, Kata"]
[Black "Minaeva, Juliana"]
[Result "1/2-1/2"]
[ECO "B90"]
[WhiteElo "1828"]
[BlackElo "1608"]
[Annotator "NA RC"]
[PlyCount "126"]
[EventDate "2018.11.04"]
[EventType "swiss"]
[EventCountry "ESP"]
[SourceTitle "playchess.com"]
[Source "ChessBase"]
[SourceQuality "1"]
[TimeControl "40/5400+30:1800+30"]

{[%evp 8,126,36,30,20,32767,40,22,39,37,53,53,100,62,83,71,86,78,88,78,76,53,56,52,60,52,48,0,32767,13,23,-64,-34,-111,-62,-104,-105,-121,-89,-225,-201,32767,32767,32767,-43,-161,-161,-173,-157,32767,-56,32767,-130,-126,32767,-140,32767,0,32767,32767,32767,69,32767,82,75,32767,32767,32767,32767,32767,32767,32767,32767,32767,32767,32767,32767,327,476,497,475,472,475,32767,522,555,504,435,416,471,518,210,405,495,404,413,512,215,477,408,510,375,285,425,483,408,396,32767,359,646,541,441,289,487,674,0,325,0,0,0,338]} 1. e4 {[%emt 0:00:00]} c5 {[%emt 0:00:00]} 2. Nf3 {[%emt 0:00:00]} d6 {[%emt 0:00:00]} 3. d4 {[%emt 0:00:02]} cxd4 {[%emt 0:00:17]} 4. Nxd4 {[%emt 0:00:09]} Nf6 {[%emt 0:00:20]} 5. Nc3 {[%emt 0:00:24]} a6 {[%emt 0:00:23]} 6. Qf3 {[%emt 0:01:28]} e5 {[%emt 0:02:39] B90: Sizilianisch (Najdorf-Variante, Abweichungen)} (6... Qb6 7. Nb3 Nbd7 8. h3 Qc7 9. a4 b6 10. e5 Bb7 11. exd6 Qb8 12. Qd3 e5 13. Bg5 Bxd6 14. O-O-O {1-0 (36) Bauer,C (2630)-Bogner,S (2603) Maastricht 2017}) 7. Nf5 {[%emt 0:03:54] LiveBook: 4 Games} Bxf5 {[%emt 0:02:33]} 8. Qxf5 {[%emt 0:00:21]} h6 $146 {[%emt 0:07:47]} ({Vorgänger:} 8... Nc6 9. Be3 Qc7 10. O-O-O b5 11. g4 b4 12. Nd5 Nxd5 13. exd5 Ne7 14. Qe4 {1-0 (41) Haast,A (2371)-Paulet,I (2197) Amsterdam 2015}) 9. Bc4 {[%emt 0:08:24]} Qd7 {[%emt 0:13:25]} 10. Qf3 {[%emt 0:13:20]} Be7 {[%emt 0:08:02]} 11. Be3 {[%emt 0:02:26]} Qc7 {[%emt 0:10:08]} 12. Bb3 {[%emt 0:04:47]} Nbd7 {[%emt 0:05:00]} 13. h3 {[%emt 0:04:49]} Nc5 {[%emt 0:08:02]} 14. Bxc5 {[%emt 0:08:49]} dxc5 {[%emt 0:01:03]} 15. Nd5 {[%emt 0:01:57]} Nxd5 {[%emt 0:01:54]} 16. Bxd5 {[%emt 0:00:45]} O-O {[%emt 0:00:57]} 17. O-O-O {[%emt 0:03:22]} c4 {[%emt 0:02:07]} 18. Kb1 {[%emt 0:03:21]} Rac8 {[%emt 0:04:59]} 19. g4 {[%emt 0:05:15]} (19. c3 $11) 19... Bh4 {[%emt 0:02:05]} 20. g5 {[%emt 0:09:54]} hxg5 {[%emt 0:02:07]} 21. Rhg1 {[%emt 0:02:31]} b5 {[%emt 0:03:25]} 22. Rg4 {[%emt 0:02:03]} c3 {[%emt 0:02:46]} 23. Rdg1 {[%emt 0:02:23]} (23. bxc3 $17 Qb6 24. Rd3) 23... cxb2 {[%emt 0:01:41]} 24. Bb3 {[%emt 0:00:31]} Qb6 {[%emt 0:09:01]} 25. Qf5 {[%emt 0:07:43] [#]} Qxf2 {[%emt 0:05:08]} ({Better is} 25... Rc6 $1 $17 26. Bd5 Rf6 27. Qxe5 Qxf2 28. Qxb2 Rf3) 26. Qxe5 {[%emt 0:03:26]} (26. Rxg5 $15 Qxf5 27. Rxg7+ Kh8 28. exf5) 26... Rfe8 {[%emt 0:00:37]} 27. Qd5 {[%emt 0:02:14]} Rcd8 {[%emt 0:01:39]} 28. Qc6 {[%emt 0:01:19]} Qd4 {[%emt 0:01:30]} (28... Qf3 $19 29. Qc5 Rd2) 29. Qg6 {[%emt 0:00:49]} Re7 {[%emt 0:01:24]} 30. Rf1 {[%emt 0:01:20]} Rdd7 {[%emt 0:00:20]} 31. Qxa6 {[%emt 0:01:31]} Re5 {[%emt 0:01:09]} 32. Qc8+ {[%emt 0:00:28]} Rd8 {[%emt 0:00:10]} 33. Bxf7+ {[%emt 0:00:25]} Kh8 {[%emt 0:00:24]} 34. Qa6 {[%emt 0:00:36]} Rd6 {[%emt 0:01:51]} 35. Bg6 {[%emt 0:01:45]} Kg8 {[%emt 0:00:53]} ({Stronger than} 35... Rxa6 36. Rf8#) 36. Qa8+ {[%emt 0:01:06]} Rd8 {[%emt 0:00:06]} 37. Qa3 {[%emt 0:00:11]} Qc4 {[%emt 0:00:57]} 38. Bf7+ {[%emt 0:00:46]} Qxf7 {[%emt 0:00:06]} 39. Rxf7 {[%emt 0:00:01]} Kxf7 {[%emt 0:00:08]} 40. Qf3+ {[%emt 0:00:00]} Kg8 {[%emt 0:00:00]} 41. Rg1 {[%emt 0:04:47]} Rd4 {[%emt 0:03:31]} 42. Rd1 {[%emt 0:02:39]} ({Weaker is} 42. Kxb2 Rb4+ 43. Kc1 Rbxe4 $18) 42... Rexe4 {[%emt 0:01:36]} (42... Rxd1+ $142 43. Qxd1 Bg3 44. Kxb2 Bf4) 43. Rxd4 {[%emt 0:01:58]} Rxd4 {[%emt 0:00:07]} 44. Qb3+ {[%emt 0:00:34]} Kh7 {[%emt 0:00:27]} 45. Qxb5 {[%emt 0:01:05]} g6 {[%emt 0:02:19]} 46. Qb7+ {[%emt 0:03:37]} Kh6 {[%emt 0:00:50]} 47. Qf3 {[%emt 0:02:29]} Rf4 {[%emt 0:00:33]} 48. Qa8 {[%emt 0:00:52]} g4 {[%emt 0:01:08]} 49. Qh8+ {[%emt 0:01:23]} Kg5 {[%emt 0:00:09]} 50. Qe5+ {[%emt 0:00:29]} Rf5 {[%emt 0:00:25]} 51. Qe3+ {[%emt 0:00:51]} Kh5 {[%emt 0:00:13]} 52. hxg4+ {[%emt 0:00:16]} (52. Qe2 $142 Kh6 53. hxg4) 52... Kxg4 {[%emt 0:00:15]} 53. Qe2+ {[%emt 0:00:35]} Kh3 {[%emt 0:00:40]} 54. Qe6 {[%emt 0:00:40]} Bf6 {[%emt 0:00:54]} 55. a4 {[%emt 0:01:28]} Kh2 {[%emt 0:01:02]} 56. Qe2+ $2 {[%emt 0:00:27]} Kg1 $1 {[%emt 0:01:14]} 57. Qe3+ {[%emt 0:02:01]} Kg2 {[%emt 0:03:23]} 58. Qe4+ {[%emt 0:01:25]} Kg1 $2 {[%emt 0:01:35]} (58... Kg3 59. Qd3+ Rf3 60. Qxg6+ Kh2 61. Qh7+ Kg3 62. Qg8+ Kh2) 59. Qg4+ {[%emt 0:00:51]} Kh2 {[%emt 0:00:23] [#]} 60. Qc4 {[%emt 0:01:10]} (60. c3 $1 $18 Bxc3 61. Qc4) 60... Kg2 {[%emt 0:02:14]} 61. Qg4+ $2 {[%emt 0:01:05]} (61. c3 $18) 61... Kh2 {[%emt 0:01:07]} 62. Qe2+ {[%emt 0:00:47]} Kg1 {[%emt 0:00:24]} 63. Qe3+ {[%emt 0:00:39]} Kg2 $18 {[%emt 0:00:55]} 1/2-1/2

[Event "FIDE WCCC G12 2018"]
[Site "Santiago de Compostela"]
[Date "2018.11.12"]
[Round "8"]
[White "Zvereva, Margarita"]
[Black "Dakic, Marta"]
[Result "1/2-1/2"]
[ECO "C41"]
[WhiteElo "1787"]
[BlackElo "1756"]
[Annotator "NA RC"]
[PlyCount "83"]
[EventDate "2018.11.04"]
[EventType "swiss"]
[EventCountry "ESP"]
[SourceTitle "playchess.com"]
[Source "ChessBase"]
[SourceQuality "1"]
[TimeControl "40/5400+30:1800+30"]

1. e4 {[%emt 0:00:00]} e5 {[%emt 0:00:00]} 2. Nf3 {[%emt 0:00:00]} d6 {[%emt 0:00:00]} 3. Bc4 {[%emt 0:00:08]} Be7 {[%emt 0:00:00]} 4. d3 {[%emt 0:00:40]} Nf6 {[%emt 0:00:11]} 5. c3 {[%emt 0:00:25]} O-O {[%emt 0:00:55]} 6. O-O {[%emt 0:00:29]} Nbd7 {[%emt 0:01:05]} 7. Bb3 {[%emt 0:00:15]} c6 {[%emt 0:02:21]} 8. Re1 {[%emt 0:01:54]} h6 {[%emt 0:04:01]} 9. h3 {[%emt 0:08:04]} Re8 {[%emt 0:04:45]} 10. Nbd2 {[%emt 0:00:39]} Bf8 {[%emt 0:03:46]} 11. d4 {[%emt 0:03:52]} Qc7 {[%emt 0:07:23]} 12. c4 {[%emt 0:14:45]} Qb6 {[%emt 0:05:57]} 13. d5 {[%emt 0:06:27]} Nc5 {[%emt 0:07:53]} 14. Bc2 {[%emt 0:01:01]} a5 {[%emt 0:09:36]} 15. Nb3 {[%emt 0:12:43]} Nxb3 {[%emt 0:06:49]} 16. Bxb3 {[%emt 0:00:22]} c5 {[%emt 0:02:55]} 17. Ba4 {[%emt 0:07:51]} Bd7 {[%emt 0:06:12]} 18. Bxd7 {[%emt 0:00:45]} Nxd7 {[%emt 0:00:05]} 19. a4 {[%emt 0:02:15]} Qd8 {[%emt 0:02:31]} 20. Nh2 {[%emt 0:07:13]} Qh4 {[%emt 0:06:02]} 21. Ra3 {[%emt 0:08:56]} b6 {[%emt 0:06:36]} 22. Nf1 {[%emt 0:10:48]} g6 {[%emt 0:10:06]} 23. Ng3 {[%emt 0:04:00]} Rac8 {[%emt 0:03:16]} 24. Rf1 {[%emt 0:01:37]} Rb8 {[%emt 0:03:40]} 25. f4 {[%emt 0:00:59]} Bg7 {[%emt 0:01:09]} 26. Qf3 {[%emt 0:04:12]} Rf8 {[%emt 0:00:32]} 27. f5 {[%emt 0:02:15]} g5 {[%emt 0:03:09]} 28. Nh5 {[%emt 0:00:42]} Nf6 {[%emt 0:00:35]} 29. Nxf6+ {[%emt 0:00:23]} Bxf6 {[%emt 0:00:04]} 30. g4 {[%emt 0:00:28]} h5 {[%emt 0:01:21]} 31. gxh5 {[%emt 0:00:21]} Kg7 {[%emt 0:00:14]} 32. Rf2 {[%emt 0:00:46]} Rh8 {[%emt 0:00:11]} 33. Qg4 {[%emt 0:00:18]} Rxh5 {[%emt 0:00:18]} 34. Qxh4 {[%emt 0:00:19]} Rxh4 {[%emt 0:00:07]} 35. Re2 {[%emt 0:00:47]} Rbh8 {[%emt 0:00:21]} 36. Ree3 {[%emt 0:00:36]} R8h5 {[%emt 0:00:56]} 37. Bd2 {[%emt 0:00:27]} Rh8 {[%emt 0:00:38]} 38. Be1 {[%emt 0:00:14]} R4h5 {[%emt 0:00:15]} 39. Rg3 {[%emt 0:00:32]} R8h7 {[%emt 0:01:29]} 40. Kg2 {[%emt 0:00:00]} Rh8 {[%emt 0:00:00]} 41. Rab3 {[%emt 0:02:00]} Bd8 {[%emt 0:00:49]} 42. Rg4 {[%emt 0:00:21]} 1/2-1/2

[Event "FIDE WCCC G12 2018"]
[Site "Santiago de Compostela"]
[Date "2018.11.12"]
[Round "8"]
[White "Munkhzul, Davaakhuu"]
[Black "Voriskova, Anna"]
[Result "1-0"]
[ECO "B56"]
[WhiteElo "1781"]
[BlackElo "1601"]
[Annotator "NA RC"]
[PlyCount "69"]
[EventDate "2018.11.04"]
[EventType "swiss"]
[EventCountry "ESP"]
[SourceTitle "playchess.com"]
[Source "ChessBase"]
[SourceQuality "1"]
[TimeControl "40/5400+30:1800+30"]

1. e4 {[%emt 0:00:00]} c5 {[%emt 0:00:00]} 2. Nf3 {[%emt 0:00:00]} d6 {[%emt 0:00:00]} 3. d4 {[%emt 0:00:00]} cxd4 {[%emt 0:00:00]} 4. Nxd4 {[%emt 0:00:00]} Nf6 {[%emt 0:00:00]} 5. Nc3 {[%emt 0:00:00]} Nc6 {[%emt 0:00:00]} 6. Nb3 {[%emt 0:02:56]} e6 {[%emt 0:07:57]} 7. Bd3 {[%emt 0:00:44]} Be7 {[%emt 0:00:23]} 8. Bd2 {[%emt 0:00:19]} O-O {[%emt 0:01:37]} 9. O-O {[%emt 0:00:40]} a6 {[%emt 0:03:43]} 10. f4 {[%emt 0:00:44]} Qc7 {[%emt 0:00:46]} 11. Kh1 {[%emt 0:00:12]} b5 {[%emt 0:01:16]} 12. a3 {[%emt 0:00:18]} Bb7 {[%emt 0:01:13]} 13. Qe2 {[%emt 0:00:20]} Rac8 {[%emt 0:04:36]} 14. Rae1 {[%emt 0:00:17]} Rfe8 {[%emt 0:11:05]} 15. e5 {[%emt 0:00:42]} Nd7 {[%emt 0:02:28]} 16. exd6 {[%emt 0:23:22]} Bxd6 {[%emt 0:03:09]} 17. Ne4 {[%emt 0:01:05]} e5 {[%emt 0:10:04]} 18. f5 {[%emt 0:02:11]} Be7 {[%emt 0:01:10]} 19. f6 {[%emt 0:02:30]} Bxf6 {[%emt 0:05:44]} 20. Nxf6+ {[%emt 0:03:43]} Nxf6 {[%emt 0:02:03]} 21. Rxf6 {[%emt 0:04:36]} gxf6 {[%emt 0:00:45]} 22. Qg4+ {[%emt 0:00:51]} Kf8 {[%emt 0:03:03]} 23. Bh6+ {[%emt 0:00:39]} Ke7 {[%emt 0:00:13]} 24. Be3 {[%emt 0:00:11]} Rcd8 {[%emt 0:05:48]} 25. Bc5+ {[%emt 0:03:13]} Rd6 {[%emt 0:00:10]} 26. Bxh7 {[%emt 0:03:29]} Qd7 {[%emt 0:09:45]} 27. Bf5 {[%emt 0:01:03]} Qc7 {[%emt 0:02:00]} 28. Bxd6+ {[%emt 0:03:07]} Qxd6 {[%emt 0:00:04]} 29. Rd1 {[%emt 0:00:07]} Nd4 {[%emt 0:03:58]} 30. c3 {[%emt 0:03:43]} Qd5 {[%emt 0:05:08]} 31. cxd4 {[%emt 0:09:01]} Qxb3 {[%emt 0:01:27]} 32. dxe5 {[%emt 0:00:39]} Bd5 {[%emt 0:01:29]} 33. exf6+ {[%emt 0:05:36]} Kd6 {[%emt 0:01:26]} 34. Qd4 {[%emt 0:11:27]} Re5 {[%emt 0:02:25]} 35. Qb6# {[%emt 0:00:23]} 1-0

[Event "FIDE WCCC G12 2018"]
[Site "Santiago de Compostela"]
[Date "2018.11.12"]
[Round "8"]
[White "Nurmanova, Alua"]
[Black "Alimova, Dana"]
[Result "1-0"]
[ECO "B43"]
[WhiteElo "1780"]
[BlackElo "1628"]
[Annotator "NA RC"]
[PlyCount "113"]
[EventDate "2018.11.04"]
[EventType "swiss"]
[EventCountry "ESP"]
[SourceTitle "playchess.com"]
[Source "ChessBase"]
[SourceQuality "1"]
[TimeControl "40/5400+30:1800+30"]

1. e4 c5 {[%emt 0:00:00]} 2. Nf3 {[%emt 0:00:00]} e6 {[%emt 0:00:00]} 3. d4 {[%emt 0:00:00]} cxd4 {[%emt 0:00:00]} 4. Nxd4 {[%emt 0:00:00]} a6 {[%emt 0:00:00]} 5. Nc3 {[%emt 0:00:02]} Qc7 {[%emt 0:00:02]} 6. Qf3 {[%emt 0:01:51]} Nf6 {[%emt 0:08:42]} 7. Qg3 {[%emt 0:02:06]} Qxg3 {[%emt 0:04:49]} 8. hxg3 {[%emt 0:00:12]} Bb4 {[%emt 0:08:55]} 9. Bd3 {[%emt 0:06:08]} Nc6 {[%emt 0:07:59]} 10. Nxc6 {[%emt 0:11:40]} dxc6 {[%emt 0:00:57]} 11. f3 {[%emt 0:04:29]} b5 {[%emt 0:20:54]} 12. a4 {[%emt 0:09:39]} Bb7 {[%emt 0:07:49]} 13. Be3 {[%emt 0:06:15]} Nd7 {[%emt 0:09:01]} 14. Rh5 {[%emt 0:09:20]} f6 {[%emt 0:13:23]} 15. f4 {[%emt 0:16:42]} g6 {[%emt 0:08:56]} 16. Rh6 {[%emt 0:04:58]} Kf7 {[%emt 0:01:56]} 17. Kf2 {[%emt 0:03:24]} Nc5 {[%emt 0:02:18]} 18. Rah1 {[%emt 0:10:34]} Kg7 {[%emt 0:01:00]} 19. Bxc5 {[%emt 0:01:13]} Bxc5+ {[%emt 0:00:06]} 20. Kf3 {[%emt 0:00:26]} Rad8 {[%emt 0:01:45]} 21. g4 {[%emt 0:02:12]} Bd4 {[%emt 0:01:10]} 22. Nd1 {[%emt 0:03:44]} bxa4 {[%emt 0:00:41]} 23. Bc4 {[%emt 0:00:28]} Rde8 {[%emt 0:00:35]} 24. c3 {[%emt 0:00:59]} Bc5 {[%emt 0:00:22]} 25. Ne3 {[%emt 0:04:04]} Bxe3 {[%emt 0:00:36]} 26. Kxe3 {[%emt 0:00:01]} c5 {[%emt 0:00:31]} 27. R6h2 {[%emt 0:01:12]} e5 {[%emt 0:00:32]} 28. f5 {[%emt 0:00:14]} g5 {[%emt 0:00:29]} 29. Ra1 {[%emt 0:00:19]} Bc6 {[%emt 0:00:14]} 30. Bxa6 {[%emt 0:00:36]} Rb8 {[%emt 0:00:16]} 31. g3 {[%emt 0:00:08]} Rb6 {[%emt 0:00:49]} 32. Bc4 {[%emt 0:00:16]} Rbb8 {[%emt 0:00:41]} 33. Bd5 {[%emt 0:01:06]} Bb5 {[%emt 0:00:28]} 34. b3 {[%emt 0:02:07]} axb3 {[%emt 0:00:33]} 35. Ra7+ {[%emt 0:00:05]} Kf8 {[%emt 0:00:20]} 36. Bxb3 {[%emt 0:00:16]} c4 {[%emt 0:00:18]} 37. Ba4 {[%emt 0:00:47]} h6 {[%emt 0:00:51]} 38. Bxb5 {[%emt 0:00:10]} Rxb5 {[%emt 0:00:14]} 39. Rc7 {[%emt 0:00:52]} Rb1 {[%emt 0:00:47]} 40. Rxc4 {[%emt 0:00:00]} Rh7 {[%emt 0:00:00]} 41. Rc8+ {[%emt 0:02:40]} Kg7 {[%emt 0:01:19]} 42. Rd2 {[%emt 0:08:49]} Rb7 {[%emt 0:02:20]} 43. Rcd8 {[%emt 0:00:12]} Re7 {[%emt 0:04:55]} 44. c4 {[%emt 0:02:51]} Rh8 {[%emt 0:04:32]} 45. Rxh8 {[%emt 0:01:52]} Kxh8 {[%emt 0:00:07]} 46. c5 {[%emt 0:00:06]} Kg8 {[%emt 0:16:52]} 47. Rd6 {[%emt 0:05:00]} Kf7 {[%emt 0:00:53]} 48. Kd3 {[%emt 0:03:35]} Rb7 {[%emt 0:01:27]} 49. c6 {[%emt 0:03:05]} Rb6 {[%emt 0:02:21]} 50. Kc4 {[%emt 0:02:03]} Ke7 {[%emt 0:00:30]} 51. Re6+ {[%emt 0:00:49]} Kf7 {[%emt 0:00:15]} 52. Kc5 {[%emt 0:00:21]} Rb1 {[%emt 0:00:16]} 53. c7 {[%emt 0:00:31]} Rc1+ {[%emt 0:00:12]} 54. Kb6 {[%emt 0:00:28]} Rb1+ {[%emt 0:00:37]} 55. Kc6 {[%emt 0:00:23]} Rc1+ {[%emt 0:00:05]} 56. Kb7 {[%emt 0:00:04]} Rb1+ {[%emt 0:00:17]} 57. Rb6 {[%emt 0:00:09]} 1-0

[Event "FIDE WCCC G12 2018"]
[Site "Santiago de Compostela"]
[Date "2018.11.12"]
[Round "8"]
[White "Butenandt, Svenja"]
[Black "Mamardashvili, Ana"]
[Result "1-0"]
[ECO "D31"]
[WhiteElo "1775"]
[BlackElo "1527"]
[Annotator "NA RC"]
[PlyCount "129"]
[EventDate "2018.11.04"]
[EventType "swiss"]
[EventCountry "ESP"]
[SourceTitle "playchess.com"]
[Source "ChessBase"]
[SourceQuality "1"]
[TimeControl "40/5400+30:1800+30"]

1. d4 {[%emt 0:00:00]} d5 {[%emt 0:00:00]} 2. c4 {[%emt 0:00:00]} e6 {[%emt 0:00:00]} 3. Nc3 {[%emt 0:00:00]} Be7 {[%emt 0:00:00]} 4. cxd5 {[%emt 0:00:18]} exd5 {[%emt 0:00:00]} 5. Bf4 {[%emt 0:00:47]} c6 {[%emt 0:00:24]} 6. e3 {[%emt 0:00:19]} g6 {[%emt 0:02:02]} 7. Bd3 {[%emt 0:01:21]} Nf6 {[%emt 0:04:39]} 8. h3 {[%emt 0:04:41]} O-O {[%emt 0:03:52]} 9. Nf3 {[%emt 0:04:00]} b6 {[%emt 0:06:06]} 10. Ne5 {[%emt 0:14:16]} Bb7 {[%emt 0:07:13]} 11. Qc2 {[%emt 0:04:30]} Kg7 {[%emt 0:12:34]} 12. O-O-O {[%emt 0:09:09]} c5 {[%emt 0:07:14]} 13. dxc5 {[%emt 0:09:07]} bxc5 {[%emt 0:00:21]} 14. Bc4 {[%emt 0:03:43]} Na6 {[%emt 0:13:37]} 15. Bxa6 {[%emt 0:06:16]} Bxa6 {[%emt 0:00:05]} 16. Nc6 {[%emt 0:00:06]} Qe8 {[%emt 0:03:21]} 17. Nxe7 {[%emt 0:01:07]} Qxe7 {[%emt 0:00:05]} 18. Bg5 {[%emt 0:11:10]} Qe5 {[%emt 0:08:31]} 19. Bxf6+ {[%emt 0:00:18]} Qxf6 {[%emt 0:00:07]} 20. Nxd5 {[%emt 0:00:35]} Qc6 {[%emt 0:01:40]} 21. Qc3+ {[%emt 0:01:13]} f6 {[%emt 0:00:27]} 22. Rd2 {[%emt 0:05:47]} Rf7 {[%emt 0:02:34]} 23. Rhd1 {[%emt 0:01:37]} Re8 {[%emt 0:01:59]} 24. Nf4 {[%emt 0:05:35]} Qa4 {[%emt 0:03:02]} 25. b3 {[%emt 0:03:48]} Qa3+ {[%emt 0:01:19]} 26. Kb1 {[%emt 0:00:06]} c4 {[%emt 0:01:00]} 27. Rd6 {[%emt 0:06:19]} cxb3 {[%emt 0:07:04]} 28. axb3 {[%emt 0:01:49]} Rb8 {[%emt 0:03:41]} 29. Ne6+ {[%emt 0:00:11]} Kh6 {[%emt 0:00:17]} 30. Nd4 {[%emt 0:01:08]} Kg7 {[%emt 0:03:20]} 31. Qb2 {[%emt 0:02:54]} Qxb2+ {[%emt 0:04:21]} 32. Kxb2 {[%emt 0:00:03]} Bc4 {[%emt 0:01:11]} 33. Rc1 {[%emt 0:00:39]} Bb5 {[%emt 0:00:39]} 34. Ne6+ {[%emt 0:00:53]} Kh6 {[%emt 0:01:08]} 35. Rd4 {[%emt 0:00:45]} g5 {[%emt 0:00:31]} 36. Rb4 {[%emt 0:00:53]} Rb6 {[%emt 0:00:49]} 37. Nd4 {[%emt 0:00:13]} Bd7 {[%emt 0:00:46]} 38. Rxb6 {[%emt 0:00:06]} axb6 {[%emt 0:00:02]} 39. Rc7 {[%emt 0:00:23]} Be8 {[%emt 0:01:14]} 40. Rxf7 {[%emt 0:00:00]} Bxf7 {[%emt 0:00:00]} 41. Nf5+ {[%emt 0:03:00]} Kg6 {[%emt 0:00:35]} 42. Ne7+ {[%emt 0:03:41]} Kg7 {[%emt 0:00:28]} 43. Nc8 {[%emt 0:01:26]} Bd5 {[%emt 0:01:44]} 44. f3 {[%emt 0:00:30]} b5 {[%emt 0:01:43]} 45. Nd6 {[%emt 0:01:08]} Bc6 {[%emt 0:01:14]} 46. Kc3 {[%emt 0:00:31]} Kg6 {[%emt 0:00:31]} 47. Kb4 {[%emt 0:00:53]} Kh5 {[%emt 0:01:04]} 48. Kc5 {[%emt 0:00:45]} Bd7 {[%emt 0:03:01]} 49. Ne4 {[%emt 0:00:58]} Kg6 {[%emt 0:00:56]} 50. Kd6 {[%emt 0:02:42]} Be8 {[%emt 0:03:28]} 51. Nc3 {[%emt 0:02:49]} Bf7 {[%emt 0:02:44]} 52. Nd5 {[%emt 0:00:24]} h6 {[%emt 0:02:31]} 53. e4 {[%emt 0:00:29]} h5 {[%emt 0:01:42]} 54. Ke7 {[%emt 0:01:55]} h4 {[%emt 0:01:37]} 55. b4 {[%emt 0:03:05]} Kg7 {[%emt 0:02:30]} 56. Nxf6 {[%emt 0:01:24]} Bc4 {[%emt 0:00:08]} 57. Nd5 {[%emt 0:00:06]} Kg6 {[%emt 0:01:50]} 58. Kd6 {[%emt 0:01:41]} Kf7 {[%emt 0:00:39]} 59. Ke5 {[%emt 0:02:00]} Kg6 {[%emt 0:00:58]} 60. Kd4 {[%emt 0:00:28]} Kf7 {[%emt 0:00:51]} 61. Ne3 {[%emt 0:00:26]} Be2 {[%emt 0:00:18]} 62. Kc3 {[%emt 0:00:28]} Ke6 {[%emt 0:00:21]} 63. Kd2 {[%emt 0:00:10]} Bc4 {[%emt 0:00:05]} 64. Nxc4 {[%emt 0:00:07]} bxc4 {[%emt 0:00:04]} 65. Kc3 {[%emt 0:00:04] Kd5} 1-0